Cogmind - Beta 17 @@@ ROGUE MODE // 2026.06.28 @ 21:47:48 // Winter2019/RPGLIKE Player: Ethanw80 Result: Destroyed by G-73 Enforcer with Heavy Laser Performance ------------- Evolutions (6) 3000 Regions Visited (18) 3600 Robots Destroyed (293) 1465 Value Destroyed (11280) 11280 Prototype IDs (40) 800 Alien Tech Used (0) 0 Bonus (3441) 3441 TOTAL SCORE: 23586 Bonus ------- High Alert Combat Kills 2526 Follower Combat Kills 415 Aligned with FarCom 300 Met Data Miner 300 Friendly Fire -100 Cogmind --------- Core Integrity 0/1000 Matter 239/900 Energy 42/640 System Corruption 0% Temperature Cool (-191) Movement Walking (190) Ox1 Location -4/Armory Parts ------- > --- POWER (3) -------- Quantum Reactor Light Quantum Reactor > --- PROPULSION (5) --- Myomer Leg Myomer Leg > --- UTILITY (6) ------ Advanced Cryofiber Web Advanced Cooling System Recoil Stabilizer Improved Phase Shifter Advanced Force Field > --- WEAPON (4) ------- Enhanced Hardcell Cannon > --- INVENTORY (2) ---- Improved Thermal Defense Suite Advanced System Restoration Module Peak State ------------ > --- POWER ------------ Quantum Reactor Light Quantum Reactor Light Quantum Reactor > --- PROPULSION ------- Myomer Leg Myomer Leg Myomer Leg Myomer Leg Myomer Leg > --- UTILITY ---------- Advanced Cryofiber Web Advanced Cooling System Recoil Stabilizer Improved Phase Shifter Advanced Force Field Advanced Point Defense System > --- WEAPON ----------- Enhanced Hardcell Cannon Enhanced Hardcell Cannon Enhanced Hardcell Cannon Enhanced Hardcell Cannon > --- INVENTORY -------- Advanced System Restoration Module KE Penetrator [Rating: 138] Favorites ----------- Power Light Fission Core Engine Improved Ion Engine Power Core Light Fission Core Reactor Light Quantum Reactor Propulsion Wheel Leg Myomer Leg Wheel Wheel Utility Recoil Stabilizer Device Recoil Stabilizer Processor 0b10 Alert Chip Protection Improved Light Armor Plating Weapon Small Laser Energy Gun Small Laser Energy Cannon Phase Cannon Ballistic Gun KE Penetrator Ballistic Cannon Gauss Cannon Launcher Grenade Launcher Piercing Weapon Enhanced Force Lance Build | -11 -10 -10 -9 -9 -9 -8 -8 -7 -7 -7 -7 -6 -6 -5 -5 -5 -4 -4 ------- Run | Yrd Mat Min Mat Min Exi Min Mat Fac Low Low Dat Pro Fac Fac Upp Upp Fac Arm Slots Evolved 14 | 3 . 1 . 1 . . 1 3 . . . . 3 . . . 1 1 Power 2 | . . 1 . . . . . . . . . . . . . . 1 . Propulsion 4 | 1 . . . . . . 1 1 . . . . 1 . . . . . Utility 5 | . . . . 1 . . . 2 . . . . 1 . . . . 1 Weapon 3 | 2 . . . . . . . . . . . . 1 . . . . . Parts Attached 82 | 5 4 3 2 1 2 . 6 8 1 2 . 3 7 3 1 . 16 18 Power 19 | 1 . . 2 . . . 2 . 1 2 . . . . . . 4 7 Engine 3 | 1 . . 2 . . . . . . . . . . . . . . . Core 7 | . . . . . . . 2 . 1 2 . . . . . . 2 . Reactor 9 | . . . . . . . . . . . . . . . . . 2 7 Propulsion 14 | 2 . 2 . . . . . 3 . . . . 1 . . . 4 2 Treads . | . . . . . . . . . . . . . . . . . . . Leg 6 | . . . . . . . . . . . . . . . . . 4 2 Wheel 8 | 2 . 2 . . . . . 3 . . . . 1 . . . . . Hover . | . . . . . . . . . . . . . . . . . . . Flight . | . . . . . . . . . . . . . . . . . . . Utility 21 | . 1 1 . 1 2 . . 2 . . . 2 4 2 . . 3 3 Device 17 | . 1 1 . . 1 . . 2 . . . 1 3 2 . . 3 3 Storage . | . . . . . . . . . . . . . . . . . . . Processor 2 | . . . . . 1 . . . . . . 1 . . . . . . Hackware . | . . . . . . . . . . . . . . . . . . . Protection 2 | . . . . 1 . . . . . . . . 1 . . . . . Artifact . | . . . . . . . . . . . . . . . . . . . Weapon 28 | 2 3 . . . . . 4 3 . . . 1 2 1 1 . 5 6 Energy Gun 5 | 1 2 . . . . . . . . . . 1 1 . . . . . Energy Cannon 1 | . . . . . . . . . . . . . 1 . . . . . Ballistic Gun 10 | 1 . . . . . . 3 . . . . . . 1 1 . 4 . Ballistic Cannon 9 | . . . . . . . 1 3 . . . . . . . . 1 4 Launcher 1 | . 1 . . . . . . . . . . . . . . . . . Special Weapon . | . . . . . . . . . . . . . . . . . . . Impact Weapon . | . . . . . . . . . . . . . . . . . . . Slashing Weapon . | . . . . . . . . . . . . . . . . . . . Piercing Weapon 2 | . . . . . . . . . . . . . . . . . . 2 Special Melee Weapon . | . . . . . . . . . . . . . . . . . . . Unidentified Prototypes . | . . . . . . . . . . . . . . . . . . . Parts Lost 1 | . . . . . . . . . . 1 . . . . . . . . Power . | . . . . . . . . . . . . . . . . . . . Propulsion . | . . . . . . . . . . . . . . . . . . . Utility 1 | . . . . . . . . . . 1 . . . . . . . . Weapon . | . . . . . . . . . . . . . . . . . . . Highest Loss Streak 1 | . . . . . . . . . . 1 . . . . . . . . To Critical Strikes . | . . . . . . . . . . . . . . . . . . . Average Backups . | . . 1 . . . . . . . . . . . . . . . 1 Power . | . . . . . . . . . . . . . . . . . . . Propulsion . | . . . . . . . . . . . . . . . . . . . Utility . | . . . . . . . . . . . . . . . . . . 1 Weapon . | . . 1 . . . . . . . . . . . . . . . . Tool/Special . | . . . . . . . . . . . . . . . . . . . Unused Backups 7 | . . . 3 . . . . . . . . . . . . . . 4 Power 1 | . . . 1 . . . . . . . . . . . . . . . Propulsion . | . . . . . . . . . . . . . . . . . . . Utility 5 | . . . 1 . . . . . . . . . . . . . . 4 Weapon 1 | . . . 1 . . . . . . . . . . . . . . . Tool/Special . | . . . . . . . . . . . . . . . . . . . Average Slot Usage (%) 92 | . 96 96 95 100 100 100 88 92 91 85 69 77 88 93 92 93 89 97 Engine 5 | . 13 13 20 22 22 22 3 . . . . . . . . . . . Core 7 | . . . . . . . 16 16 14 14 15 15 12 12 12 12 9 . Reactor 2 | . . . . . . . . . . . . . . . . . 3 15 Leg 5 | . . . . . . . . . . . . . . . . . 10 25 Wheel 18 | . 28 27 25 22 22 22 20 23 23 23 23 23 20 25 25 25 10 . Device 19 | . 11 13 12 11 11 11 10 17 23 20 15 17 23 25 25 25 26 32 Processor 2 | . . . . . 2 11 10 8 7 5 . 2 1 . . . . . Protection 1 | . . . . 10 8 . . . . . . . 4 6 6 6 3 . Energy Gun 11 | . 36 40 37 33 33 33 3 . . . . 2 5 3 . . . . Ballistic Gun 6 | . 3 . . . . . 19 11 . . . . . 2 7 12 13 9 Ballistic Cannon 8 | . . . . . . . 5 13 23 21 15 15 12 12 12 12 8 11 Peak Build Rating 138 | 5 7 9 12 14 23 23 33 51 53 53 35 44 59 63 63 62 102 138 Average Rating 51 | 3 6 7 10 13 15 23 31 39 52 47 35 38 56 60 62 62 77 125 On Entrance 36 | . 5 7 9 12 14 23 23 33 51 53 35 35 44 59 63 62 62 102 Avg Prop Armor Cover (%) 5 | . . . . . . . . . . . . . . . . . 5 . Naked Turns . | . . . . . . . . . . . . . . . . . . . Heaviest Build 127 | 7 10 9 18 23 26 25 31 46 54 54 33 37 50 53 53 49 78 127 Greatest Support 135 | 32 32 32 20 20 20 20 20 58 58 58 58 58 68 68 68 68 105 135 Greatest Overweight (x) 3 | . . . . 1 1 1 1 3 . . . . . . . . 1 1 Average Overweight (x) . | . . . . . . 1 1 . . . . . . . . . . . Largest Inventory Capacity 2 | . 1 1 1 1 1 1 1 2 2 2 2 2 2 2 2 2 2 2 Average Capacity 1 | . . 1 1 1 1 1 1 1 2 2 2 2 2 2 2 2 2 2 Most Carried 2 | . 1 1 1 1 1 . 1 2 1 2 . 1 1 1 1 . 2 2 Average Carried . | . . . . . . . . . . . . . . . . . . 1 Final Capacity 2 | . 1 1 1 1 1 1 1 2 2 2 2 2 2 2 2 2 2 2 Final Carried 2 | . 1 1 1 . . . 1 . . . . . . . . . 1 2 Class Distribution -------------------- 24% | Scavenger-Tank 22% | Hacker-Tank 20% | Skirmisher 13% | Gunner 7% | Tank 5% | Scavenger-Skirmisher 5% | Mutant Dominant Class ---------------- Gunner | -10/Materials Skirmisher | -10/Mines Scavenger-Tank | -9/Materials Scavenger-Tank | -9/Mines Scavenger-Tank | -9/Exiles Scavenger-Skirmisher | -8/Mines Skirmisher | -8/Materials Skirmisher | -7/Factory Tank | -7/Lower Caves Tank | -7/Lower Caves Mutant | -7/Data Miner Mutant | -6/Proximity Caves Scavenger-Tank | -6/Factory Hacker-Tank | -5/Factory Hacker-Tank | -5/Upper Caves Hacker-Tank | -5/Upper Caves Hacker-Tank | -4/Factory Hacker-Tank | -4/Armory Resources | -11 -10 -10 -9 -9 -9 -8 -8 -7 -7 -7 -7 -6 -6 -5 -5 -5 -4 -4 ----------- Run | Yrd Mat Min Mat Min Exi Min Mat Fac Low Low Dat Pro Fac Fac Upp Upp Fac Arm Matter Collected 9353 | 250 161 30 20 10 20 . 1312 745 536 348 . 242 250 86 126 408 1277 3532 Remotely . | . . . . . . . . . . . . . . . . . . . Salvage Created 9140 | . 891 232 499 43 . 226 1062 634 141 82 . 412 203 243 95 115 1343 2919 Parts 534 | . 77 19 26 4 . 4 60 47 7 7 . 11 27 10 14 4 68 149 Haulers Intercepted 11 | . 2 . 3 . . . 3 2 . . . . . . . . 1 . Recyclers Shooed 1 | . 1 . . . . . . . . . . . . . . . . . Parts Field Recycled . | . . . . . . . . . . . . . . . . . . . Retrieved Matter . | . . . . . . . . . . . . . . . . . . . Parts Self-Destructed 42 | . . . . . . . . . 7 4 . 11 . . 15 5 . . Prevented . | . . . . . . . . . . . . . . . . . . . Parts Restored . | . . . . . . . . . . . . . . . . . . . Kills | -11 -10 -10 -9 -9 -9 -8 -8 -7 -7 -7 -7 -6 -6 -5 -5 -5 -4 -4 ------- Run | Yrd Mat Min Mat Min Exi Min Mat Fac Low Low Dat Pro Fac Fac Upp Upp Fac Arm Combat Hostiles Destroyed 210 | . 16 4 6 . . 2 29 18 11 4 . 5 7 3 5 4 21 75 Guns 109 | . 15 4 6 . . 1 25 8 . . . 1 4 1 . 4 11 29 Cannons 98 | . . . . . . . 4 10 11 4 . 4 2 2 5 . 10 46 AOE 1 | . 1 . . . . . . . . . . . . . . . . . Classes Destroyed 23 | . 9 . 1 . . . 2 3 . 1 . 1 1 1 1 . . 3 Worker 17 | . 2 . 1 . . . . 7 . . . . . . . . 7 . Builder 22 | . 6 2 1 . . . . 7 . . . . 2 . . . 4 . Tunneler 5 | . 1 1 . 2 . . . . . . . . . . . . 1 . Hauler 11 | . 2 . 3 . . . 3 2 . . . . . . . . 1 . Recycler 8 | . 2 1 1 . . . 1 2 . . . . . . . . 1 . Minesweeper 1 | . . . . . . . . . . . . . . . 1 . . . Mechanic 1 | . . . . . . . . . . . . . . . . . . 1 Operator 7 | . 1 . 1 . . . 1 1 . . . . 1 . . . 1 1 Drone 1 | . . . . . . . . . . . . 1 . . . . . . Watcher 11 | . 3 . . . . . 1 2 . . . . . . . . 2 3 Swarmer 57 | . 6 4 1 . . . 7 5 6 3 . . 5 . 1 1 4 14 Saboteur 2 | . . . . . . . . . . . . . . . . . . 2 Grunt 67 | . 10 . 2 . . 2 13 6 2 . . 3 . . 2 2 3 22 Brawler 8 | . . . . . . . . 1 1 . . . . . . . . 6 Duelist 8 | . . . . . . . . 1 1 . . . . . . . . 6 Protector 2 | . . . . . . . . . . . . . . . . . . 2 Sentry 23 | . . . 3 . . . 2 3 1 . . 1 1 2 1 1 5 3 Specialist 8 | . . . . . . . 6 . . . . . . . . . . 2 Hunter 12 | . . . . . . . . . . . . . . 1 1 . 6 4 Programmer 17 | . . . . . . . . 2 . . . . . . . . 2 13 Heavy 3 | . . . . . . . 1 . . . . . . . . . 1 1 Behemoth 1 | . . . . . . . . . . . . . 1 . . . . . Master Thief 1 | . . . . . . . . . . 1 . . . . . . . . Best Kill Streak 12 | . 5 3 3 2 . 2 5 8 6 3 . 3 4 1 2 2 12 12 Combat Bots Only 11 | . 3 3 2 . . 2 4 4 6 3 . 3 4 1 2 2 4 11 Max Kills in Single Turn 3 | . 2 2 1 1 . 1 3 3 1 1 . 1 1 1 1 1 3 3 Gunslinging 1 | . 1 1 . . . . . . . . . . . . . . . . Exploded 1 | . 1 . . . . . . . . . . . . . . . . . Melee . | . . . . . . . . . . . . . . . . . . . Uniques/NPCs Destroyed . | . . . . . . . . . . . . . . . . . . . Combat | -11 -10 -10 -9 -9 -9 -8 -8 -7 -7 -7 -7 -6 -6 -5 -5 -5 -4 -4 -------- Run | Yrd Mat Min Mat Min Exi Min Mat Fac Low Low Dat Pro Fac Fac Upp Upp Fac Arm Hostile Shots Fired 1104 | . 47 10 20 . . 12 92 102 54 27 . 33 33 7 27 14 118 508 Missed 449 | . 12 3 7 . . 4 31 33 22 11 . 10 14 2 7 4 51 238 Hits 655 | . 35 7 13 . . 8 61 69 32 16 . 23 19 5 20 10 67 270 Melee 27 | . . . . . . . . . . 6 . . . . . . . 21 Projectile 628 | . 35 7 13 . . 8 61 69 32 10 . 23 19 5 20 10 67 249 AOE 1 | . . . . . . . . . . . . . . 1 . . . . Critical Strikes 29 | . . . . . . . 2 3 . . . . 1 1 . 1 1 20 Damage Taken 7477 | . 363 60 156 . . 115 1022 729 285 96 . 194 181 138 222 326 681 2909 Core 5842 | . 299 55 125 . . 94 815 579 224 72 . 155 126 72 150 265 518 2293 Absorbed by Shields 3843 | . . . . . . . . . 114 35 . 74 69 48 83 118 635 2667 Redirected to Core 4971 | . 208 15 99 . . 67 720 514 194 72 . 118 115 57 138 192 425 2037 Ignored by Resistances 1239 | . . . 24 . . 16 140 107 64 20 . 39 38 24 45 20 168 534 Core Remaining (%) 65 | 100 . 85 . . . 84 49 . . . . 26 43 . . 70 . . Volleys Fired 565 | . 58 11 25 2 . 9 70 67 20 11 . 15 15 4 9 19 69 161 Largest 4 | . 3 3 3 3 . 3 3 3 3 3 . 3 4 4 4 4 4 4 Hottest 240 | . 120 120 120 120 . 120 120 120 120 120 . 143 240 240 198 141 158 232 Shots Fired 1863 | . 161 33 75 6 . 27 198 195 60 29 . 39 56 16 36 76 250 606 Gun 1033 | . 157 33 75 6 . 27 155 72 . . . 9 13 4 9 38 148 287 Cannon 826 | . . . . . . . 43 123 60 29 . 30 43 12 27 38 102 319 Launcher 4 | . 4 . . . . . . . . . . . . . . . . . Special . | . . . . . . . . . . . . . . . . . . . Kinetic 1529 | . 21 . . . . . 195 195 60 29 . 30 30 10 27 76 250 606 Thermal 330 | . 136 33 75 6 . 27 3 . . . . 9 26 6 9 . . . Explosive 4 | . 4 . . . . . . . . . . . . . . . . . Electromagnetic . | . . . . . . . . . . . . . . . . . . . Robot Hit Streak 50 | . 17 5 12 9 . 19 21 13 10 4 . 29 40 5 14 20 25 50 Robot Miss Streak 8 | . 2 3 1 . . 1 8 4 6 1 . 2 2 1 1 2 5 3 Penetration Max 1 | . . . . . . . . 1 . . . . . . . . 1 1 Secondary Targets 5 | . 2 2 . . . . 1 . . . . . . . . . . . Max Gunslinging Chain 1 | . 1 1 . . . . 1 . . . . . . . . . . . Shots Hit Robots 1210 | . 96 17 50 2 . 24 136 125 32 15 . 33 29 8 27 23 171 422 Core Hits 551 | . 51 9 24 2 . 9 80 63 13 6 . 13 10 6 12 8 68 177 Critical Kills 7 | . . . . . . . . 1 . . . . . . . . 2 4 Critical Parts Destroyed 14 | . . . . . . . . . . . . . . . . 1 4 9 Critical Strikes 74 | . . . . . . . . 8 2 2 . 4 6 1 2 3 12 34 Burn 2 | . . . . . . . . . . . . . 2 . . . . . Destroy 21 | . . . . . . . . 1 . . . . . . . 1 6 13 Blast 51 | . . . . . . . . 7 2 2 . 4 4 1 2 2 6 21 Melee Attacks . | . . . . . . . . . . . . . . . . . . . Impact . | . . . . . . . . . . . . . . . . . . . Slashing . | . . . . . . . . . . . . . . . . . . . Piercing . | . . . . . . . . . . . . . . . . . . . Sneak Attacks . | . . . . . . . . . . . . . . . . . . . Combat Hostiles . | . . . . . . . . . . . . . . . . . . . Follow-up Attacks . | . . . . . . . . . . . . . . . . . . . Damage Inflicted 31498 | . 1186 212 575 21 . 259 2841 3248 925 472 . 786 743 218 670 587 4309 14446 Guns 14647 | . 996 212 575 21 . 259 2395 1200 . . . 155 223 45 135 358 2506 5567 Cannons 16555 | . . . . . . . 446 2048 925 472 . 631 520 173 535 229 1788 8788 Explosions 276 | . 190 . . . . . . . . . . . . . . . . 86 Melee . | . . . . . . . . . . . . . . . . . . . Ramming 20 | . . . . . . . . . . . . . . . . . 15 5 Kinetic 28360 | . 104 . . . . . 2819 3248 925 472 . 631 361 79 485 587 4294 14355 Thermal 2842 | . 892 212 575 21 . 259 22 . . . . 155 382 139 185 . . . Explosive 276 | . 190 . . . . . . . . . . . . . . . . 86 Electromagnetic . | . . . . . . . . . . . . . . . . . . . Impact . | . . . . . . . . . . . . . . . . . . . Slashing . | . . . . . . . . . . . . . . . . . . . Piercing . | . . . . . . . . . . . . . . . . . . . Highest Corruption 3 | . . . . . . . 2 . . . . . . . . . . 3 Average Corruption 2 | . . . . . . . 2 . . . . . . . . . . 2 Corruption Purged 3 | . . . . . . . . . . . . . . . . . . 3 Corruption Blocked . | . . . . . . . . . . . . . . . . . . . Effects 25 | . . . . . . . 11 . . . . . . . . . . 14 Message Errors 6 | . . . . . . . 4 . . . . . . . . . . 2 Matter Fused 8 | . . . . . . . 4 . . . . . . . . . . 4 Heat Flow Errors 5 | . . . . . . . 1 . . . . . . . . . . 4 Energy Discharges 2 | . . . . . . . 1 . . . . . . . . . . 1 Data Loss (minor) 2 | . . . . . . . 1 . . . . . . . . . . 1 Weapon Failures 2 | . . . . . . . . . . . . . . . . . . 2 Overload Shots . | . . . . . . . . . . . . . . . . . . . Overflow Damage 632 | . . . . . . . . 63 67 12 . 9 23 . . . 77 381 Projectiles 632 | . . . . . . . . 63 67 12 . 9 23 . . . 77 381 Explosions . | . . . . . . . . . . . . . . . . . . . Melee . | . . . . . . . . . . . . . . . . . . . Knockbacks 112 | . . . . . . . 4 13 5 10 . 6 2 . 4 4 4 60 Impact . | . . . . . . . . . . . . . . . . . . . Kinetic 103 | . . . . . . . 4 12 4 10 . 6 2 . 4 3 4 54 Secondary 9 | . . . . . . . . 1 1 . . . . . . 1 . 6 Self-Inflicted Damage 7 | . . . . . . . . . . . . . . . . . 7 . Shots . | . . . . . . . . . . . . . . . . . . . Rammed 1 | . . . . . . . . . . . . . . . . . 1 . Targets Rammed 2 | . . . . . . . . . . . . . . . . . 1 1 Kicked 1 | . . . . . . . . . . . . . . . . . . 1 Crushed . | . . . . . . . . . . . . . . . . . . . Highest Temperature 414 | . 354 . 6 6 . 21 72 15 17 . . 147 414 . . . . 17 Average Temperature 94 | . 106 . 3 4 . 11 26 8 7 . . 67 216 . . . . 12 Received Heat Transfer 1525 | . 159 . 51 . . 72 324 240 38 . . 54 . 15 18 67 100 387 Effects 7 | . 4 . . . . . . . . . . . 3 . . . . . Shutdowns 1 | . . . . . . . . . . . . . 1 . . . . . Interference 5 | . 3 . . . . . . . . . . . 2 . . . . . Damage (minor) 1 | . 1 . . . . . . . . . . . . . . . . . Siege Activations . | . . . . . . . . . . . . . . . . . . . Martial Activations . | . . . . . . . . . . . . . . . . . . . Shielding Activations . | . . . . . . . . . . . . . . . . . . . Robots Disrupted . | . . . . . . . . . . . . . . . . . . . Combat Hostiles . | . . . . . . . . . . . . . . . . . . . Robots Corrupted . | . . . . . . . . . . . . . . . . . . . Combat Hostiles . | . . . . . . . . . . . . . . . . . . . Parts Fried . | . . . . . . . . . . . . . . . . . . . Impact Corruptions . | . . . . . . . . . . . . . . . . . . . Robots Melted 2 | . . . . . . 1 . . . . . . 1 . . . . . Combat Hostiles 2 | . . . . . . 1 . . . . . . 1 . . . . . Parts Melted 19 | . 3 1 4 . . 3 . . . . . . 7 . . . . 1 Heat Transferred 6151 | . 2025 475 1300 50 . 600 50 . . . . 333 885 211 222 . . . Parts Sabotaged 8 | . . . . . . . . . . . . . . . . . . 8 Parts Stolen 6 | . . . . . . . . . . 6 . . . . . . . . Parts Stripped . | . . . . . . . . . . . . . . . . . . . Power Chain Reactions . | . . . . . . . . . . . . . . . . . . . Alert | -11 -10 -10 -9 -9 -9 -8 -8 -7 -7 -7 -7 -6 -6 -5 -5 -5 -4 -4 ------- Run | Yrd Mat Min Mat Min Exi Min Mat Fac Low Low Dat Pro Fac Fac Upp Upp Fac Arm Maximum Alert Level 5 | . . . . . . . 1 1 . . . . 3 1 . . 2 5 Low Security (%) 51 | 100 100 100 100 100 . 100 79 59 . . . . . . . . 23 . Level 1 16 | . . . . . . . 20 40 . . . . . 100 . . 33 9 Level 2 15 | . . . . . . . . . . . . . 80 . . . 43 21 Level 3 4 | . . . . . . . . . . . . . 19 . . . . 11 Level 4 11 | . . . . . . . . . . . . . . . . . . 50 Level 5 1 | . . . . . . . . . . . . . . . . . . 6 High Security . | . . . . . . . . . . . . . . . . . . . Max Security . | . . . . . . . . . . . . . . . . . . . Peak Influence 1724 | . 199 129 187 77 . 42 300 259 . . . . 809 390 . . 675 1724 Initial 501 | . . 59 12 67 . . . 133 . . . . 501 383 . . 140 313 Average 377 | . 61 63 130 46 . 5 90 189 . . . . 602 369 . . 349 1020 Influence Increases 7518 | . 540 163 372 10 . 60 640 518 196 56 . 157 1086 127 212 169 909 2303 Destroy 0b10 Robot/C 4208 | . 320 100 200 . . 32 464 288 176 48 . 100 240 60 140 120 440 1480 Destroy 0b10 Robot/NC 421 | . 85 20 35 10 . 8 24 84 . . . 15 15 . 5 . 85 35 Destroy Leader 820 | . 70 20 56 . . 8 112 72 8 8 . 10 50 30 10 10 116 240 Allied During Kill 284 | . . 8 24 . . . . . . . . 17 73 31 57 39 32 3 Successful Hack 42 | . 8 . 12 . . . . . . . . . 14 . . . . 8 Disable Machine 564 | . 15 . . . . . . 24 . . . . 225 . . . 75 225 Destroy Structure 462 | . 27 . . . . . 16 26 . . . . 19 6 . . 146 222 Advance Influence 450 | . . . . . . . . . . . . . 450 . . . . . Lose Combat Pursuer 267 | . 15 15 45 . . 12 24 24 12 . . 15 . . . . 15 90 Influence Decreases 5794 | . 387 284 230 167 17 60 346 571 280 213 . 75 385 540 317 211 491 1220 Entered New Map 1550 | . . 94 20 107 17 . . 161 90 31 . . 31 400 137 51 83 328 Time Decay 3694 | . 387 190 150 60 . 60 346 410 190 172 . 75 254 120 160 160 368 592 Search Patrol Dispatched 100 | . . . . . . . . . . . . . 100 . . . . . Lost Part 10 | . . . . . . . . . . 10 . . . . . . . . Lost Ally 140 | . . . 60 . . . . . . . . . . 20 20 . 40 . Purge Threat 300 | . . . . . . . . . . . . . . . . . . 300 Squads Dispatched 39 | . 3 . 2 . . . 7 5 . . . . 2 1 . . 4 15 Investigation 6 | . 1 . 1 . . . . . . . . . . 1 . . . 3 Extermination 10 | . . . . . . . . 1 . . . . 1 . . . 2 6 Reinforcement 16 | . 2 . 1 . . . 7 1 . . . . 1 . . . 2 2 Assault 4 | . . . . . . . . . . . . . . . . . . 4 Garrison 3 | . . . . . . . . 3 . . . . . . . . . . Intercept . | . . . . . . . . . . . . . . . . . . . Searches Triggered 1 | . . . . . . . . . . . . . 1 . . . . . Construction Impeded 3 | . . . . . . . 1 . . . . . 1 . . . 1 . Haulers Reinforced . | . . . . . . . . . . . . . . . . . . . Active Scanning Responses . | . . . . . . . . . . . . . . . . . . . Cargo Convoy Interrupts . | . . . . . . . . . . . . . . . . . . . Stealth | -11 -10 -10 -9 -9 -9 -8 -8 -7 -7 -7 -7 -6 -6 -5 -5 -5 -4 -4 --------- Run | Yrd Mat Min Mat Min Exi Min Mat Fac Low Low Dat Pro Fac Fac Upp Upp Fac Arm Distress Signals 10 | . 1 . 1 . . . 1 1 . . . . . . . . 1 5 Communications Jammed . | . . . . . . . . . . . . . . . . . . . Distress Signals . | . . . . . . . . . . . . . . . . . . . Times Spotted 279 | . 21 4 17 . . 3 31 25 10 8 . 9 12 3 6 5 23 102 Peak Tracking Total 18 | . 4 2 7 . . 3 4 4 7 5 . 4 5 1 2 3 6 18 Tactical Retreats 17 | . 1 1 3 . . 1 2 1 1 . . 1 . . . . 1 5 Traps | -11 -10 -10 -9 -9 -9 -8 -8 -7 -7 -7 -7 -6 -6 -5 -5 -5 -4 -4 ------- Run | Yrd Mat Min Mat Min Exi Min Mat Fac Low Low Dat Pro Fac Fac Upp Upp Fac Arm Traps Triggered 10 | . 4 . 1 . . . 1 1 . . . . 2 . . . . 1 Indirectly 2 | . . . . . . . . . . . . . 2 . . . . . Trap Hack Attempts . | . . . . . . . . . . . . . . . . . . . Triggered . | . . . . . . . . . . . . . . . . . . . Disarmed . | . . . . . . . . . . . . . . . . . . . Reprogrammed . | . . . . . . . . . . . . . . . . . . . Reused . | . . . . . . . . . . . . . . . . . . . Traps Extracted . | . . . . . . . . . . . . . . . . . . . Installed . | . . . . . . . . . . . . . . . . . . . Triggered . | . . . . . . . . . . . . . . . . . . . Machines | -11 -10 -10 -9 -9 -9 -8 -8 -7 -7 -7 -7 -6 -6 -5 -5 -5 -4 -4 ---------- Run | Yrd Mat Min Mat Min Exi Min Mat Fac Low Low Dat Pro Fac Fac Upp Upp Fac Arm Machines Disabled 39 | . 1 . . . . . . 2 . . . . 15 . . . 6 15 Max in Single Turn 6 | . 1 . . . . . . 1 . . . . 6 . . . 3 1 Energy Cycler 1 | . . . . . . . . . . . . . . . . . . 1 Machines Repaired . | . . . . . . . . . . . . . . . . . . . Machines Dismantled . | . . . . . . . . . . . . . . . . . . . Machines Sabotaged . | . . . . . . . . . . . . . . . . . . . Overloaded Fab Kills . | . . . . . . . . . . . . . . . . . . . Hacking | -11 -10 -10 -9 -9 -9 -8 -8 -7 -7 -7 -7 -6 -6 -5 -5 -5 -4 -4 --------- Run | Yrd Mat Min Mat Min Exi Min Mat Fac Low Low Dat Pro Fac Fac Upp Upp Fac Arm Machines Accessed 28 | . 4 1 1 . 5 . . 1 . . 4 . 2 1 . . 1 8 Terminals 9 | . 4 . . . . . . 1 . . . . 1 . . . . 3 Fabricators 8 | . . . . . . . . . . . . . 1 1 . . 1 5 Repair Stations . | . . . . . . . . . . . . . . . . . . . Recycling Units . | . . . . . . . . . . . . . . . . . . . Scanalyzers 1 | . . . 1 . . . . . . . . . . . . . . . Garrison Access . | . . . . . . . . . . . . . . . . . . . Total Hacks 126 | . 11 1 1 . 50 . . 3 . . 28 . 4 2 . . 2 24 Successful 111 | . 7 1 1 . 50 . . 3 . . 28 . 2 2 . . . 17 Failed 15 | . 4 . . . . . . . . . . . 2 . . . 2 7 Catastrophic 2 | . 2 . . . . . . . . . . . . . . . . . Database Lockouts . | . . . . . . . . . . . . . . . . . . . Manual 5 | . . . . . 5 . . . . . . . . . . . . . Terminals 31 | . 11 . . . . . . 3 . . . . 3 . . . . 14 Fabricators 15 | . . . . . . . . . . . . . 1 2 . . 2 10 Repair Stations . | . . . . . . . . . . . . . . . . . . . Recycling Units . | . . . . . . . . . . . . . . . . . . . Scanalyzers 1 | . . . 1 . . . . . . . . . . . . . . . Garrison Access . | . . . . . . . . . . . . . . . . . . . Terminal Hacks 100 | . 7 1 . . 50 . . 3 . . 28 . 2 . . . . 9 Record 64 | . 2 . . . 49 . . . . . 11 . 1 . . . . 1 Part Schematic 12 | . . . . . . . . . . . 10 . . . . . . 2 Robot Schematic 5 | . . . . . . . . 1 . . 4 . . . . . . . Robot Analysis 1 | . 1 . . . . . . . . . . . . . . . . . Prototype ID Bank 5 | . 1 . . . . . . . . . 3 . . . . . . 1 Open Door 1 | . . 1 . . . . . . . . . . . . . . . . Level Access Points 1 | . 1 . . . . . . . . . . . . . . . . . Emergency Access Points 1 | . 1 . . . . . . . . . . . . . . . . . Alert Level 2 | . 1 . . . . . . 1 . . . . . . . . . . Unreport Threat 2 | . . . . . . . . . . . . . . . . . . 2 Dispatch Records 1 | . . . . . . . . 1 . . . . . . . . . . Maintenance Status 1 | . . . . . . . . . . . . . . . . . . 1 Assault Status 1 | . . . . . . . . . . . . . 1 . . . . . Zone Layout 2 | . . . . . . . . . . . . . . . . . . 2 Proto ID Catalog 1 | . . . . . 1 . . . . . . . . . . . . . Fabricator Hacks 10 | . . . . . . . . . . . . . . 2 . . . 8 Load Schematic 4 | . . . . . . . . . . . . . . 1 . . . 3 Build 6 | . . . . . . . . . . . . . . 1 . . . 5 Repair Station Hacks . | . . . . . . . . . . . . . . . . . . . Recycling Unit Hacks . | . . . . . . . . . . . . . . . . . . . Scanalyzer 1 | . . . 1 . . . . . . . . . . . . . . . Insert Component 1 | . . . 1 . . . . . . . . . . . . . . . Garrison Access Hacks . | . . . . . . . . . . . . . . . . . . . Unauthorized Hacks . | . . . . . . . . . . . . . . . . . . . Terminals . | . . . . . . . . . . . . . . . . . . . Fabricators . | . . . . . . . . . . . . . . . . . . . Repair Stations . | . . . . . . . . . . . . . . . . . . . Recycling Units . | . . . . . . . . . . . . . . . . . . . Scanalyzers . | . . . . . . . . . . . . . . . . . . . Garrison Access . | . . . . . . . . . . . . . . . . . . . Data Cores Recovered 2 | . . . 1 . . . . . . . . . 1 . . . . . Used . | . . . . . . . . . . . . . . . . . . . Hacking Detections 14 | . 3 . 1 . . . . . . . . . 2 1 . . 1 6 Full Trace Events 5 | . 1 . . . . . . . . . . . . 1 . . . 3 Feedback Events . | . . . . . . . . . . . . . . . . . . . Feedback Blocked . | . . . . . . . . . . . . . . . . . . . Robot Schematics Acquired 5 | . . . . . . . . 1 . . 4 . . . . . . . Robots Built 4 | . . . . . . . . . . . . . . 3 . . . 1 Authchips . | . . . . . . . . . . . . . . . . . . . Time 335 | . . . . . . . . . . . . . . 67 . . . 268 Total Robot Build Rating 15 | . . . . . . . . . . . . . . 12 . . . 3 Part Schematics Acquired 12 | . . . . . . . . . . . 10 . . . . . . 2 Parts Built 6 | . . . . . . . . . . . . . . . . . . 6 Authchips . | . . . . . . . . . . . . . . . . . . . Time 320 | . . . . . . . . . . . . . . . . . . 320 Total Part Build Rating 48 | . . . . . . . . . . . . . . . . . . 48 Part Studies Acquired . | . . . . . . . . . . . . . . . . . . . Parts Repaired . | . . . . . . . . . . . . . . . . . . . Time . | . . . . . . . . . . . . . . . . . . . Parts Recycled . | . . . . . . . . . . . . . . . . . . . Recycled Matter . | . . . . . . . . . . . . . . . . . . . Retrieved Matter . | . . . . . . . . . . . . . . . . . . . Retrieved Components . | . . . . . . . . . . . . . . . . . . . Parts Scanalyzed . | . . . . . . . . . . . . . . . . . . . Part Schematics Acquired . | . . . . . . . . . . . . . . . . . . . Parts Damaged . | . . . . . . . . . . . . . . . . . . . Bothacking | -11 -10 -10 -9 -9 -9 -8 -8 -7 -7 -7 -7 -6 -6 -5 -5 -5 -4 -4 ------------ Run | Yrd Mat Min Mat Min Exi Min Mat Fac Low Low Dat Pro Fac Fac Upp Upp Fac Arm Used RIF Installer . | . . . . . . . . . . . . . . . . . . . Robots Hacked . | . . . . . . . . . . . . . . . . . . . Non-combat . | . . . . . . . . . . . . . . . . . . . Combat . | . . . . . . . . . . . . . . . . . . . Robot Hacks Applied . | . . . . . . . . . . . . . . . . . . . Relay Couplers Released . | . . . . . . . . . . . . . . . . . . . Fabnet Peak Effective % . | . . . . . . . . . . . . . . . . . . . Robots Rewired . | . . . . . . . . . . . . . . . . . . . Allies Hacked . | . . . . . . . . . . . . . . . . . . . Hacks Repelled . | . . . . . . . . . . . . . . . . . . . Allies | -11 -10 -10 -9 -9 -9 -8 -8 -7 -7 -7 -7 -6 -6 -5 -5 -5 -4 -4 -------- Run | Yrd Mat Min Mat Min Exi Min Mat Fac Low Low Dat Pro Fac Fac Upp Upp Fac Arm Total Allies 8 | . . 3 . . . . . . . . . 1 . 3 . . . 1 Largest Group 4 | . . 3 3 . . . . . . . . 1 1 4 3 2 2 1 Highest-Rated Group 186 | . . 40 40 . . . . . . . . 96 96 186 152 123 123 34 Highest-Rated Ally 96 | . . 16 16 . . . . . . . . 96 96 96 96 96 96 34 Total Orders . | . . . . . . . . . . . . . . . . . . . Ally Attacks 79 | . . 1 26 . . . . . . . . 3 15 7 11 11 4 1 Total Damage 1593 | . . 18 295 . . . . . . . . 96 349 176 251 232 130 46 Kills 18 | . . 1 4 . . . . . . . . 1 5 . 2 2 1 2 Allies Corrupted . | . . . . . . . . . . . . . . . . . . . Allies Melted . | . . . . . . . . . . . . . . . . . . . Intel | -11 -10 -10 -9 -9 -9 -8 -8 -7 -7 -7 -7 -6 -6 -5 -5 -5 -4 -4 ------- Run | Yrd Mat Min Mat Min Exi Min Mat Fac Low Low Dat Pro Fac Fac Upp Upp Fac Arm Active Infowar (turns) 5678 | . 1098 394 310 136 639 376 998 993 387 347 . . . . . . . . Sensors 2443 | . 1098 394 310 136 505 . . . . . . . . . . . . . Cloaking 3244 | . . . . . 143 376 998 993 387 347 . . . . . . . . Robot Analysis Total 1 | . 1 . . . . . . . . . . . . . . . . . Derelict Logs Recovered 6 | . . 1 . . . . . . 2 . . 2 . . 1 . . . Drone Launches . | . . . . . . . . . . . . . . . . . . . Drone Recoveries . | . . . . . . . . . . . . . . . . . . . Exploration | -11 -10 -10 -9 -9 -9 -8 -8 -7 -7 -7 -7 -6 -6 -5 -5 -5 -4 -4 ------------- Run | Yrd Mat Min Mat Min Exi Min Mat Fac Low Low Dat Pro Fac Fac Upp Upp Fac Arm Turns Passed 10864 | 40 1357 396 310 136 639 376 998 993 387 448 86 505 546 245 334 333 856 1879 Spaces Moved 7805 | 34 923 352 202 136 667 233 519 750 350 461 100 504 502 163 300 258 522 829 Core 4 | 2 . . . . . . . 2 . . . . . . . . . . Treads . | . . . . . . . . . . . . . . . . . . . Legs 1095 | . . . . . . . . . . . . . . . . . 266 829 Wheels 6706 | 32 923 352 202 136 667 233 519 748 350 461 100 504 502 163 300 258 256 . Hover . | . . . . . . . . . . . . . . . . . . . Flight . | . . . . . . . . . . . . . . . . . . . Fastest Speed 50 | 50 100 80 80 80 80 95 95 80 86 86 86 86 85 85 85 85 85 120 Average Speed 94 | 97 100 95 80 94 94 95 95 85 86 86 86 86 85 85 85 85 102 121 Slowest Speed 200 | 100 100 100 80 95 95 95 95 200 86 86 86 86 86 85 85 85 120 190 Overloaded Moves . | . . . . . . . . . . . . . . . . . . . Propulsion Burnouts . | . . . . . . . . . . . . . . . . . . . Robots Hopped . | . . . . . . . . . . . . . . . . . . . Potential Cave-ins 1 | . . . . . . . . . . . . . . . . 1 . . Cave-ins Triggered 2 | . . . . . . . . . . . . . . . . 1 . 1 Exploration Rate (%) 45 | 4 88 75 22 43 94 58 40 18 58 64 77 68 14 4 50 30 14 51 Regions Visited 18 Branch Regions 11 Pre-discovered Areas 3 | . . . . . 1 . . . 1 . 1 . . . . . . . Known Exits Taken 2 | . . 1 . . . . . . . . . . . 1 . . . . Unknown Exits Taken 16 | 1 1 . 1 1 1 1 1 1 1 1 1 1 1 . 1 1 1 . Scrap Searched 11 | . . 1 . . . 1 . . . 2 . 5 . . 1 1 . . Spaces Dug 18 | . . . . . . . . . . . . . . . . 14 4 . Terrain Destroyed 367 | . 30 . . . . . 11 25 20 10 . 11 12 6 7 19 87 129 Melee . | . . . . . . . . . . . . . . . . . . . Projectile 263 | . . . . . . . 11 25 20 10 . 11 12 6 7 19 52 90 AOE 104 | . 30 . . . . . . . . . . . . . . . 35 39 Terrain Rammed . | . . . . . . . . . . . . . . . . . . . Walls Destroyed . | . . . . . . . . . . . . . . . . . . . Machines Disabled . | . . . . . . . . . . . . . . . . . . . Actions | -11 -10 -10 -9 -9 -9 -8 -8 -7 -7 -7 -7 -6 -6 -5 -5 -5 -4 -4 --------- Run | Yrd Mat Min Mat Min Exi Min Mat Fac Low Low Dat Pro Fac Fac Upp Upp Fac Arm Total 10005 | 38 1232 387 295 138 673 367 872 952 391 488 99 543 583 260 356 324 686 1321 Wait 1135 | . 222 17 37 . 1 125 239 88 7 12 . 19 37 85 24 33 8 181 Move 7787 | 33 922 351 201 135 666 232 518 749 349 460 99 503 501 162 299 257 521 829 Hop . | . . . . . . . . . . . . . . . . . . . Pick Up 71 | . . 1 4 . 2 . 5 5 1 2 . 3 7 3 1 . 15 22 Fast Attach 36 | 5 10 3 2 . . . 2 5 . 1 . . . . . . 4 4 Attach 50 | . . . . 1 2 . 4 5 1 2 . 3 7 2 1 . 13 9 Detach 1 | . 1 . . . . . . . . . . . . . . . . . Swap 12 | . . . . . . . . . . . . . . 1 . . . 11 Drop 70 | . 1 4 5 . 2 . 6 8 1 . . . 4 3 1 . 16 19 Fire 565 | . 58 11 25 2 . 9 70 67 20 11 . 15 15 4 9 19 69 161 Melee . | . . . . . . . . . . . . . . . . . . . Ram 1 | . . . . . . . . . . . . . . . . . 1 . Kick 1 | . . . . . . . . . . . . . . . . . . 1 Crush . | . . . . . . . . . . . . . . . . . . . Escape Stasis . | . . . . . . . . . . . . . . . . . . . Rewire 6 | . . . . . . 1 . . . . . . . . 4 1 . . Trap . | . . . . . . . . . . . . . . . . . . . Miscellaneous 270 | . 18 . 21 . . . 28 25 12 . . . 12 . 17 14 39 84 Route ------- -11/Scrapyard -10/Materials (discovered 5 exits: *Mat x3 / *Min x2) -10/Mines (discovered 2 exits: *Mat / Sub) -9/Materials (discovered 2 exits: [*Mat] / [*Min]) -9/Mines -9/Exiles (discovered 2 exits: [*Min x2]) -8/Mines -8/Materials (discovered 2 exits: *Fac x2) -7/Factory -7/Lower Caves -7/Lower Caves -7/Data Miner -6/Proximity Caves -6/Factory (discovered 2 exits: *Fac / [*Low]) -5/Factory -5/Upper Caves -5/Upper Caves -4/Factory (discovered 2 exits: [*Upp] / *Arm) -4/Armory History --------- Turn | Location | Event 1 | -11/Scrapyard | Upgraded with Propulsion slot (x1) 1 | -11/Scrapyard | Upgraded with Weapon slot (x2) 11 | -11/Scrapyard | Discovered new exit (range 16) 41 | -11/Scrapyard | Entered Materials 162 | -10/Materials | Discovered new exit (range 16) 226 | -10/Materials | Discovered new exit (range 16) 374 | -10/Materials | Build established: Gunner 891 | -10/Materials | Discovered new exit (range 16) 978 | -10/Materials | Identified exit to Materials 1068 | -10/Materials | Reached level 2 1122 | -10/Materials | Discovered new exit (range 7) 1398 | -10/Materials | Entered Mines 1441 | -10/Mines | A weapon hastily lodged in a ceiling crevice suddenly fell to the ground 1501 | -10/Mines | Build established: Skirmisher 1520 | -10/Mines | Identified exit to Subcaves 1574 | -10/Mines | Assisted by bots powering up and referring to "LRC-V3" 1617 | -10/Mines | Discovered exit to Materials (range 7) 1626 | -10/Mines | Met a Derelict who couldn't figure out how to use a Trap Extractor 1663 | -10/Mines | Reached level 3 1681 | -10/Mines | Upgraded with Power slot (x1) 1794 | -10/Mines | Entered Materials 1794 | -9/Materials | Accompanied by 3 allies 1796 | -9/Materials | Reached level 4 1934 | -9/Materials | Discovered new exit (range 10) 2072 | -9/Materials | Discovered new exit (range 12) 2104 | -9/Materials | Entered Mines 2105 | -9/Mines | Build established: Scavenger-Tank 2106 | -9/Mines | Reached level 5 2106 | -9/Mines | Upgraded with Utility slot (x1) 2134 | -9/Mines | Met a Derelict bent on vengeance 2235 | -9/Mines | Deemed a non-threat by the Exiles lab entrance 2235 | -9/Mines | Discovered new exit (range 5) 2240 | -9/Mines | Entered Exiles 2263 | -9/Exiles | Discovered new exit (range 16) 2278 | -9/Exiles | Met 8R-AWN 2294 | -9/Exiles | Met EX-HEX 2331 | -9/Exiles | Met EX-DEC 2366 | -9/Exiles | Learned location of Zion (-6) 2411 | -9/Exiles | Discovered new exit (range 10) 2483 | -9/Exiles | Visited The Gauntlet 2633 | -9/Exiles | Met EX-BIN 2653 | -9/Exiles | Aligned with FarCom system 2654 | -9/Exiles | Given EX-Vault access code 2720 | -9/Exiles | Opened EX-Vault 2735 | -9/Exiles | Found Cloak of Protection 2747 | -9/Exiles | Found 0b10 Alert Chip 2769 | -9/Exiles | Warned to stay clear of 0b10 Research branches 2879 | -9/Exiles | Stole two prototypes: Cloak of Protection, 0b10 Alert Chip 2879 | -9/Exiles | Entered Mines 3168 | -8/Mines | Build established: Scavenger-Skirmisher 3250 | -8/Mines | Discovered new exit (range 6) 3255 | -8/Mines | Entered Materials 3257 | -8/Materials | Reached level 6 3257 | -8/Materials | Upgraded with Propulsion slot (x1) 3324 | -8/Materials | Reached level 7 3437 | -8/Materials | Discovered new exit (range 18) 3723 | -8/Materials | Build established: Skirmisher 3947 | -8/Materials | Reached level 8 4115 | -8/Materials | Discovered new exit (range 5) 4128 | -8/Materials | Core integrity fell below 50% 4253 | -8/Materials | Entered Factory 4253 | -7/Factory | Upgraded with Utility slot (x1) 4254 | -7/Factory | Core integrity fell below 50% 4255 | -7/Factory | FarCom data flow suspended 4255 | -7/Factory | Reached level 9 4304 | -7/Factory | Core integrity fell below 20% 4304 | -7/Factory | Reached level 10 4307 | -7/Factory | Garrison activated, responded to threat 4501 | -7/Factory | Upgraded with Propulsion slot (x1) 5042 | -7/Factory | Discovered new exit (range 8) 5060 | -7/Factory | Reached level 11 5118 | -7/Factory | Upgraded with Utility slot (x1) 5246 | -7/Factory | Entered Lower Caves 5269 | -7/Lower Caves | Attracted the attention of an 0b10 checkpoint 5413 | -7/Lower Caves | Build established: Tank 5594 | -7/Lower Caves | Reached level 12 5602 | -7/Lower Caves | Discovered new exit (range 6) 5633 | -7/Lower Caves | Entered another Lower Caves area 5637 | -7/Lower Caves | Encountered a Warlord checkpoint 5975 | -7/Lower Caves | Encountered a Master Thief 5976 | -7/Lower Caves | Encountered a Master Thief 5976 | -7/Lower Caves | Encountered a Master Thief 5977 | -7/Lower Caves | Encountered a Master Thief 5979 | -7/Lower Caves | Encountered a Master Thief 5980 | -7/Lower Caves | Cloak of Protection stolen by Master Thief 5980 | -7/Lower Caves | Neutrino Core stolen by Master Thief 5980 | -7/Lower Caves | Imp. Shield Generator stolen by Master Thief 5980 | -7/Lower Caves | Gauss Cannon stolen by Master Thief 5987 | -7/Lower Caves | Mic. Nuclear Core stolen by Master Thief 6074 | -7/Lower Caves | Discovered new exit (range 5) 6081 | -7/Lower Caves | Entered Data Miner 6081 | -7/Data Miner | Discovered new exit (range 6) 6096 | -7/Data Miner | Met Data Miner 6096 | -7/Data Miner | Reached level 13 6128 | -7/Data Miner | Learned location of Section 7 (-2) 6128 | -7/Data Miner | Acquired the access code to Warlord's prototype stash 6143 | -7/Data Miner | Received God Mode back door access code from Data Miner 6167 | -7/Data Miner | Entered Proximity Caves 6171 | -6/Proximity Caves | Spotter reported a threat 6265 | -6/Proximity Caves | Build established: Mutant 6335 | -6/Proximity Caves | Spotter reported a threat 6365 | -6/Proximity Caves | Learned Factory machine intel 6388 | -6/Proximity Caves | Spotter reported a threat 6406 | -6/Proximity Caves | Encountered a Derelict guarding a broken Freighter 6417 | -6/Proximity Caves | Unaware initiated a cargo recovery operation 6483 | -6/Proximity Caves | Learned Factory trap positions 6510 | -6/Proximity Caves | Attracted the attention of an 0b10 checkpoint 6596 | -6/Proximity Caves | Escorted by Enhanced Grunt 6605 | -6/Proximity Caves | Reached level 14 6628 | -6/Proximity Caves | Discovered new exit (range 10) 6672 | -6/Proximity Caves | Entered Factory 6672 | -6/Factory | Accompanied by 1 ally 6673 | -6/Factory | Loaded intel: 100 trap records 6673 | -6/Factory | Core integrity fell below 50% 6674 | -6/Factory | Loaded intel: 290 machine locations 6674 | -6/Factory | Reached level 15 6674 | -6/Factory | Upgraded with Propulsion slot (x1) 6674 | -6/Factory | Upgraded with Utility slot (x1) 6674 | -6/Factory | Upgraded with Weapon slot (x1) 6725 | -6/Factory | Core integrity fell below 20% 6780 | -6/Factory | Build established: Gunner 6908 | -6/Factory | Discovered new exit (range 4) 7022 | -6/Factory | Search patrols dispatched 7063 | -6/Factory | Spotted B-75 Beast 7099 | -6/Factory | Reached level 16 7099 | -6/Factory | Destroyed B-75 Beast 7104 | -6/Factory | Build established: Scavenger-Tank 7115 | -6/Factory | Reached level 17 7116 | -6/Factory | Discovered new exit (range 18) 7218 | -6/Factory | Entered another Factory area 7218 | -5/Factory | Accompanied by 1 ally 7219 | -5/Factory | Identified exit to Upper Caves 7219 | -5/Factory | Core integrity fell below 50% 7220 | -5/Factory | Reached level 18 7309 | -5/Factory | Fabricated L-41 Fighter (x3) 7463 | -5/Factory | Entered Upper Caves 7463 | -5/Upper Caves | Accompanied by 3 allies 7475 | -5/Upper Caves | Reached level 19 7502 | -5/Upper Caves | Learned Factory security intel 7543 | -5/Upper Caves | Build established: Hacker-Tank 7754 | -5/Upper Caves | Discovered new exit (range 6) 7797 | -5/Upper Caves | Entered another Upper Caves area 7797 | -5/Upper Caves | Accompanied by 2 allies 7817 | -5/Upper Caves | Attracted the attention of an 0b10 checkpoint 7824 | -5/Upper Caves | Reached level 20 7970 | -5/Upper Caves | Crushed by falling debris 8058 | -5/Upper Caves | Discovered new exit (range 15) 8130 | -5/Upper Caves | Entered Factory 8130 | -4/Factory | Accompanied by 2 allies 8132 | -4/Factory | Reached level 21 8422 | -4/Factory | Reached level 22 8708 | -4/Factory | Upgraded with Power slot (x1) 8735 | -4/Factory | Discovered new exit (range 9) 8785 | -4/Factory | Reached level 23 8909 | -4/Factory | Discovered new exit (range 19) 8986 | -4/Factory | Entered Armory 9015 | -4/Armory | Reached level 24 9108 | -4/Armory | Upgraded with Utility slot (x1) 9274 | -4/Armory | Fabricated D-53 Grenadier (x1) 9331 | -4/Armory | Destroyed 7 combat bots 9383 | -4/Armory | Build established: Scavenger-Tank 9673 | -4/Armory | Reached level 25 9733 | -4/Armory | Energy Cycler disabled 9859 | -4/Armory | Destroyed 8 combat bots 10089 | -4/Armory | Fabricated Centrium Wheel (x2) 10104 | -4/Armory | Fabricated Enh. Hardcell Cannon (x2) 10222 | -4/Armory | Build established: Hacker-Tank 10236 | -4/Armory | First assault squad dispatched 10352 | -4/Armory | Fabricated Enh. Force Lance (x2) 10452 | -4/Armory | Reached level 26 10453 | -4/Armory | Crushed by falling debris 10478 | -4/Armory | Destroyed 11 combat bots 10754 | -4/Armory | Spotted Armor Guard 10759 | -4/Armory | Destroyed 10 combat bots 10762 | -4/Armory | Spotted B-86 Titan 10762 | -4/Armory | Spotted Armor Guard 10826 | -4/Armory | Core integrity fell below 50% 10859 | -4/Armory | Core integrity fell below 20% 10865 | -4/Armory | Destroyed by G-73 Enforcer with Heavy Laser Last Messages --------------- 10848_ Adv. Point Defense System blown off. 10848_ Myomer Leg blown off. 10848_ E-15 Imp destroyed. 10851_ B-60 Warrior destroyed. 10854_ Kicked G-73 Enforcer out of the way. 10855_ Acquired 36 matter. 10855_ G-73 Enforcer destroyed. 10857_ B-60 Warrior suffers critical hit (Burn). 10857_ Myomer Leg blown off. 10857_ Enh. Hardcell Cannon blown off. 10857_ Lgt. Quantum Reactor blown off. 10857_ Enh. Hardcell Cannon blown off. 10857_ E-15 Imp destroyed. 10859_ Acquired 110 matter. 10861_ Acquired 97 matter. 10863_ B-60 Warrior heat damages Rnf. Fission Core. 10864_ Knocked back. 10865_ Acquired 1 matter. 10865_ G-67 Veteran knocked back. [Achievement: 20k Club] Map ----- +----------------------------------------------------+ | "# ##????????????????????????????????????????% | | "#""#######################??????????????????% | | %% " #??????# #??#! | | % %# #??????# #??# | | % #%!!! ###?##?# #??# | | %%#%!!! + ?? #?# #?## | | "" "[==] %%= !!! #??? #?#########?" | | """ """ !] " #??? #????### #### | | """ "" ] " #??? #????# # | | =% = " #??? ###### """ # | | % "" #??? ? "R" # | | % ##" """#"##"## #%" % #???####### " " # | | % ?#"""### # # ![* #?????????# # | | ?#####?# # # =%=%% #?????????# " | | ???????# # ##"#[###############???##+##### | | ????????# # #"?][%# #????# #??## | | ????????# " !!/ !!! ###### #### | | ????????# ##### %# !! ! + T | | ????????# #???## ## !!! ###### "" | | ?????????# ###### ## ######+#### | | ?????????# + %%################ #### | | ?????????# ######+######?????? ### #??? | | ?????????# ## %=!%g=%;### #?? ? #??? | | ?????????# ## !!!!gb ]/ #??#### """ #??? | | ?????????######## !!!!!! g######?????# """ #??? | | ????????????????# /!=]@#??????????# """ #??? | | ????????????????###########??????????##########??? | | ?????????????????????????????????????????????????? | | ?????????????????????????????????????????????????? | | ?????????????????????????????????????????????????? | | ?????????????????????????????????????????????????? | | ?????????????????????????????????????????????????? | | ?????????????????????????????????????????????????? | | ?????????????????????????????????????????????????? | | ?????????????????????????????????????????????????? | | ?????????????????????????????????????????????????? | | ?????????????????????????????????????????????????? | | | | | | | | | | | | | | | | | | | | | | | | | | | +----------------------------------------------------+ Best States ------------- Heat Dissipation 116 Energy Generation 75 Energy Capacity 730 Matter Stores 900 Matter Capacity 900 Sight Range 20 Robot Scan Range 22 Terrain Scan Density 410 Cloak Strength 5 Base Temperature (-) 200 Armor Coverage 150 Resistance: KI 10 Resistance: TH 10 Resistance: EX 10 Point Defense Rating 240 Phase Shifting 10 Evasion (%) 65 Targeting Accuracy 8 Recoil Reduction 8 Offensive Hacking 35 Defensive Hacking 10 Item Schematics ----------------- Combat Drone Bay | -7/Data Miner | Free Lgt. Regenerative Plating | -7/Data Miner | Free Biomechanical Wings | -7/Data Miner | Free Imp. Heavy Machine Gun | -7/Data Miner | Free Field Propulsion Drive | -7/Data Miner | Free Point Defense System | -7/Data Miner | Free Exp. Power Shielding | -7/Data Miner | Free Wave Gun | -7/Data Miner | Free Imp. Transmission Jammer | -7/Data Miner | Free Imp. Remote Datajack | -7/Data Miner | Free Enh. Force Lance | -4/Armory | Hacked Hvy. Disruptor Cannon | -4/Armory | Hacked Robot Schematics ------------------ D-53 Grenadier | -7/Factory | Hacked W-25 Informer | -7/Data Miner | Free E-15 Imp | -7/Data Miner | Free L-41 Fighter | -7/Data Miner | Free A-15 Conveyor | -7/Data Miner | Free Fabricated ------------ L-41 Fighter | x3 | -5/Factory D-53 Grenadier | x1 | -4/Armory Centrium Wheel | x2 | -4/Armory | Preloaded Enh. Hardcell Cannon | x2 | -4/Armory | Preloaded Enh. Force Lance | x2 | -4/Armory Repaired ---------- Nothing Studied --------- None Alien Tech Used ----------------- None Achievements -------------- 20k Club Can't Touch This Consequences Construction Begets Destruction DIY Cooler Explorer Explosive Keycard Just What I Needed Leap Before You Look Librarian Look Less Dangerous Next Time Morally Flexible More Power To You My Command Is Your Wish Oh No You Don't! Please Form A Line Respectable Loadout Sixth Sense Suspicious The Oracle Unlikely Earthworm Challenges ------------ None RPGLIKE | -11 -10 -10 -9 -9 -9 -8 -8 -7 -7 -7 -7 -6 -6 -5 -5 -5 -4 -4 --------- Run | Yrd Mat Min Mat Min Exi Min Mat Fac Low Low Dat Pro Fac Fac Upp Upp Fac Arm Levels Raised 25 | . 1 1 1 1 . . 3 3 1 . 1 1 3 1 1 1 3 3 XP Earned 41109 | 3000 2015 1103 2822 500 350 700 4340 3380 1420 780 650 1610 4394 2105 1559 1210 4611 4560 XP Spent 38695 | 2700 1400 1800 1350 500 . 500 3700 5950 . . . . 6020 4400 . 2900 2430 5045 Upgrades 95 | 5 9 3 6 1 . 5 11 16 . . . . 13 4 . 4 5 13 Power Slot 2 | . . 1 . . . . . . . . . . . . . . 1 . Propulsion Slot 4 | 1 . . . . . . 1 1 . . . . 1 . . . . . Utility Slot 5 | . . . . 1 . . . 2 . . . . 1 . . . . 1 Weapon Slot 3 | 2 . . . . . . . . . . . . 1 . . . . . Core Integrity 8 | . . . . . . . . 4 . . . . . . . . . 4 Heat Dissipation 10 | . 5 . . . . . . . . . . . 2 . . . 3 . Energy Generation 2 | . 1 . . . . . 1 . . . . . . . . . . . Energy Storage 4 | . . . . . . . . . . . . . 4 . . . . . Matter Storage 12 | . . . . . . . 8 . . . . . . . . . . 4 Mass Support 2 | . . . . . . . . 2 . . . . . . . . . . Inventory Capacity 2 | . 1 . . . . . . 1 . . . . . . . . . . Sight Range 4 | . 2 . . . . . . . . . . . . . . 2 . . Sensor Range 11 | . . . . . . 5 . . . . . . 4 . . . . 2 Terrain Scan Density 4 | . . . . . . . 1 3 . . . . . . . . . . Ranged Accuracy 7 | 2 . 2 . . . . . . . . . . . . . 2 1 . Hack Attack % 7 | . . . . . . . . 3 . . . . . 4 . . . . Hack Defense % 2 | . . . . . . . . . . . . . . . . . . 2 KI Resistance % 2 | . . . 2 . . . . . . . . . . . . . . . TH Resistance % 2 | . . . 2 . . . . . . . . . . . . . . . EX Resistance % 2 | . . . 2 . . . . . . . . . . . . . . . Protomatter Created 2487 | . 195 . 102 . . . 252 212 110 . . . 97 . 121 100 398 900 Integrity Restored 5687 | . 329 . 406 . . . 604 510 234 . . . 261 . 384 324 838 1797 Core 4832 | . 268 . 211 . . . 604 510 234 . . . 261 . 384 324 743 1293 Parts 855 | . 61 . 195 . . . . . . . . . . . . . 95 504 Protomatter Decayed 718 | . 42 . 324 . . . 15 42 . . . . . . 9 . 101 185 Game ------ Seed ThrowingDisassembledLaser Manual? 0 Play Time 02:07:25 Cumulative 7.9 hours Start 2026.06.28 @ 19:31:32 End 2026.06.28 @ 21:47:48 Sessions 1 Manual Loads 0 Difficulty Rogue Special Mode Winter2019/RPGLIKE Game No. 9 Rogue 9 Adventurer 0 Explorer 0 Win Type - Total 0 Types 0/0/0/0/0/0/0/0/0/0 Lore% 10 Gallery% 13 Achievement% 15 Wizard Run 0 Options --------- Layout 0 ASCII 0 Keyboard 0 Movement Mouse Keybinds 0 Fullscreen 2 Font 18/SmallcapsGlow Map View 76x50 Zoom Use 0% Tactical HUD 1 Map Filters NONE Filters NONE Steam 1 RUN: 1c8557d3-cf82-4c04-acf5-1aec016e1023